Workbook

Sheet Zalozenia i wyniki
B6: Ile odkładać na emeryturę, abyś mógł żyć, jak chcesz?
B7: Ten plik jest dodatkiem do artykułu na blogu Finanse Bardzo Osobiste: | E7: https://marciniwuc.com/jak-obliczyc-emeryture/
B9: Założenia: | D9: Edytuj tylko te wartości, które są w niebieskich polach
D10: Kwota miesięczna | E10: Komentarz
B11: 1 | C11: Jaką kwotę netto (na rękę) miesięcznie chciałbyś mieć do dyspozycji na emeryturze? | D11: 3000 | E11: Wpisz kwotę w "dzisiejszych pieniądzach" - inflację uwzględnimy odpowiednio w dalszych obliczeniach i założeniach
B12: 2 | C12: Jaką kwotę emerytury netto (na rękę) otrzymasz z ZUS? | D12: 2000 | E12: Najlepszym sposobem na uzyskanie precyzyjnej informacji jest skorzystanie z kalkulatora ZUS. Jak tę kwotę policzyć dowiesz się z tego filmu:
D13: O emeryturze z ZUS => | E13: Jak obliczyć emeryturę?
B14: 3 | C14: Takiej kwoty zabraknie Ci w każdym miesiącu na emeryturze, jeśli nie odłożysz dodatkowych pieniędzy: | D14: =D11-D12 -> 1000 | E14: To kwota, którą będziesz musiał zapewnić sobie samodzielnie, jeśli oczywiście chcesz żyć na zaplanowanym poziomie.
B16: 4 | C16: Za ile lat planujesz przejść na emeryturę? | D16: 35 | E16: Tu określamy liczbę lat, która pozostała Ci jeszcze na uzbieranie dodatkowych oszczędności. Jeśli dziś masz np. 30 lat i planujesz przejść na emeryturę w wieku 65 lat, to wpisz: 65-30 = 35
B17: 5 | C17: Jaką średnią roczną stopę zwrotu uda Ci się Twoim zdaniem osiągnąć z pieniędzy inwestowanych na emeryturę? | D17: 0.04 | E17: Wpisz NOMINALNĄ stopę zwrotu, jaką w Twojej ocenie dasz radę "wykręcić" z inwestycji. Bądź realistą. Dla przykładu moje założenia są obecnie takie: (a) 0,25% ponad inflację w przypadku lokat bankowych [nominalnie ok. 2,75%] (b) 1% ponad inflację w przypadku funduszy obligacji skarbowych [nominalnie 3,5%] (c) 1,5% ponad inflację w przypadku detalicznych obligacji skarbowych 10-letnich [nominalnie 4%] (d) ok. 3,0% ponad inflację w przypadku portfela międzynarodowych funduszy akcji [nominalnie ok. 5,5%]
B18: 6 | C18: Jaką średnią roczną stopę zwrotu uda Ci się Twoim zdaniem osiągnąć PO przejściu na emeryturę? | D18: 0.03 | E18: Wiele osób po przejściu na emeryturę nadal inwestuje, choć zwykle w sposób bardziej bezpieczny. Jeśli Ty również zakładasz takie podejście, uwzględnij to, obniżając zakładaną stopę zwrotu.
B19: 7 | C19: Jaką kwotę odłożyłeś na emeryturę do tej pory? | D19: 0 | E19: Wpisz kwotę, którą z myślą o emeryturze masz już odłożoną (np. na IKE, IKZE, PPE). Uwzględnimy ją w obliczeniach.
B20: 8 | C20: Zakładana inflacja | D20: 0.025 | E20: To założenie uwzględniamy w wyliczeniach. Moim zdaniem racjonalnie jest założyć, że w długim terminie średnia roczna stopa inflacji będzie na poziomie celu inflacyjnego NBP, czyli 2,5% w skali roku.
B21: 9 | C21: Czy uwzględniamy w obliczeniach, że w każdym roku PRZED EMERYTURĄ z Twoich zysków zostanie potrącony podatek od zysków kapitałowych (tzw. podatek Belki)? | D21: TAK | E21: O ile nie inwestujesz w ramach IKE czy PPE, warto pozostawić opcję "TAK" - to ostrożne, ale racjonalne założenie. Jeśli w Twoim przypadku podatek nie będzie pobrany, wybierz po prostu "NIE".
B22: 10 | C22: Czy uwzględniamy w obliczeniach, że w każdym roku PO PRZEJŚCIU NA EMERYTURĘ z Twoich zysków zostanie potrącony podatek od zysków kapitałowych (tzw. podatek Belki)? | D22: TAK | E22: Jeśli po przejściu na emeryturę będziesz oszczędzać/inwestować poza produktami jak IKE czy PPE, będziesz musiał płacić podatek od zysków kapitałowych. W takiej sytuacji warto pozostawić opcję "TAK". Jeśli w Twoim przypadku podatek nie będzie pobrany, wybierz po prostu "NIE".
B23: 11 | C23: Stawka podatku od zysków kapitałowych: | D23: 0.19 | E23: W obliczeniach w każdym roku taka część wypracowanych w tym roku odsetek/zysków zostanie odjęta od salda Twoich oszczędności.
B27: Wyniki:
B31: Na ile lat emerytury ma wystarczyć? | C31: Tyle powinna wynieść wartość nominalna zgromadzonych przez Ciebie dodatkowych oszczędności w momencie przejścia na emeryturę: | D31: Tyle powinieneś odkładać co miesiąc od dziś, aby uzbierać tę kwotę: | E31: Tyle wynosi dzisiejsza wartość tej kwoty, którą musisz uzbierać (w kolumnie C widzisz faktyczne saldo, jakie powinno być na Twoim rachunku w momencie przejścia na emeryturę, po uwzględnieniu inflacji. W "dzisiejszych pieniądzach" ta kwota warta jest tyle, co poniżej)
B32: na 5 lat | C32: =IF($D$22="TAK",'Obliczenia - ile uzbierac'!C18,'Obliczenia - ile uzbierac'!J18) -> 142587.0642 | D32: =IF($D$21="NIE",'Obliczenia - ile odkladac'!E14,'Obliczenia - ile odkladac'!J14) -> 187.553322 | E32: =PV($D$20,$D$16,0,-C32) -> 60082.06329
B33: na 10 lat | C33: =IF($D$22="TAK",'Obliczenia - ile uzbierac'!C27,'Obliczenia - ile uzbierac'!J27) -> 285662.0101 | D33: =IF($D$21="NIE",'Obliczenia - ile odkladac'!E15,'Obliczenia - ile odkladac'!J15) -> 375.7483842 | E33: =PV($D$20,$D$16,0,-C33) -> 120369.7058
B34: na 15 lat | C34: =IF($D$22="TAK",'Obliczenia - ile uzbierac'!C41,'Obliczenia - ile uzbierac'!J41) -> 429226.5072 | D34: =IF($D$21="NIE",'Obliczenia - ile odkladac'!E16,'Obliczenia - ile odkladac'!J16) -> 564.5873823 | E34: 180863.6311
B35: na 20 lat | C35: =IF($D$22="TAK",'Obliczenia - ile uzbierac'!C60,'Obliczenia - ile uzbierac'!J60) -> 573282.2305 | D35: =IF($D$21="NIE",'Obliczenia - ile odkladac'!E17,'Obliczenia - ile odkladac'!J17) -> 754.0725197 | E35: 241564.5448
B36: na 25 lat | C36: =IF($D$22="TAK",'Obliczenia - ile uzbierac'!C84,'Obliczenia - ile uzbierac'!J84) -> 717830.8607 | D36: =IF($D$21="NIE",'Obliczenia - ile odkladac'!E18,'Obliczenia - ile odkladac'!J18) -> 944.2060073 | E36: 302473.1553
B37: na 30 lat | C37: =IF($D$22="TAK",'Obliczenia - ile uzbierac'!C113,'Obliczenia - ile uzbierac'!J113) -> 862874.0845 | D37: =IF($D$21="NIE",'Obliczenia - ile odkladac'!E19,'Obliczenia - ile odkladac'!J19) -> 1134.990063 | E37: 363590.1731
B38: na 35 lat | C38: =IF($D$22="TAK",'Obliczenia - ile uzbierac'!C147,'Obliczenia - ile uzbierac'!J147) -> 1008413.594 | D38: =IF($D$21="NIE",'Obliczenia - ile odkladac'!E20,'Obliczenia - ile odkladac'!J20) -> 1326.426914 | E38: 424916.3115
B39: na 40 lat | C39: =IF($D$22="TAK",'Obliczenia - ile uzbierac'!C186,'Obliczenia - ile uzbierac'!J186) -> 1154451.088 | D39: =IF($D$21="NIE",'Obliczenia - ile odkladac'!E21,'Obliczenia - ile odkladac'!J21) -> 1518.518793 | E39: 486452.2859

Sheet Obliczenia - ile uzbierac
C2: Uwaga! To jest arkusz obliczeniowy. Najlepiej przy nim nie majstrować :) Jeśli chcesz zmienić założenia zrób to w zakładce "Założenia i wyniki"
C4: Nominalna wartość przyszła brakującej kwoty (uwzględnienie inflacji)
C5: Liczba lat do emerytury | D5: ='Zalozenia i wyniki'!D16 -> 35
C6: Stopa inflacji | D6: ='Zalozenia i wyniki'!D20 -> 0.025
C7: Wartość bieżąca | D7: ='Zalozenia i wyniki'!D14 -> 1000 | E7: Tyle będzie nam brakować "w dzisiejszych pieniądzach"
C8: Wartość przyszła | D8: =FV(D6,D5,,-D7) -> 2373.205186 | E8: Taką nominalną wartość będzie miała ta kwota w momencie przejścia na emeryturę
C10: Jaka wartość oszczędności zapewni nam brakującą kwotę?
C11: Uroczniona brakująca kwota | D11: =D8*12 -> 28478.46223 | E11: To 12-krotność miesięcznej kwoty, którą wypłacimy sobie na początku każdego roku
C12: Stopa zwrotu na emeryturze | D12: ='Zalozenia i wyniki'!D18 -> 0.03
C13: Stawka podatku Belki | D13: ='Zalozenia i wyniki'!D23 -> 0.19
B15: Obliczenia z podatkiem Belki (PO PRZEJŚCIU NA EMERYTURĘ): | I15: Obliczenia bez podatku Belki (PO PRZEJŚCIU NA EMERYTURĘ):
B16: na 5 lat
B17: Rok na emeryturze | C17: Wartość rachunku na początku okresu | D17: Wypłata na początku każdego roku: | E17: Kwota pozostała jako inwestycja | F17: Zyski w danym roku: | G17: Podatek Belki | I17: Rok na emeryturze | J17: Wartość rachunku na początku okresu | K17: Wypłata na początku każdego roku: | L17: Kwota pozostała jako inwestycja | M17: Zyski w danym roku:
B18: 1 | C18: 142587.0642 | D18: =$D$11 -> 28478.46223 | E18: =C18-D18 -> 114108.6019 | F18: =E18*$D$12 -> 3423.258058 | G18: =F18*$D$13 -> 650.4190311 | I18: 1 | J18: 141016.5562 | K18: =$D$11 -> 28478.46223 | L18: =J18-K18 -> 112538.094 | M18: =L18*$D$12 -> 3376.142819
B19: 2 | C19: =E18+F18-G18 -> 116881.441 | D19: =D18*(1+$D$6) -> 29190.42379 | E19: =C19-D19 -> 87691.01719 | F19: =E19*$D$12 -> 2630.730516 | G19: =F19*$D$13 -> 499.838798 | I19: 2 | J19: =L18+M18 -> 115914.2368 | K19: =K18*(1+$D$6) -> 29190.42379 | L19: =J19-K19 -> 86723.81299 | M19: =L19*$D$12 -> 2601.71439
B20: 3 | C20: =E19+F19-G19 -> 89821.90891 | D20: =D19*(1+$D$6) -> 29920.18438 | E20: =C20-D20 -> 59901.72452 | F20: =E20*$D$12 -> 1797.051736 | G20: =F20*$D$13 -> 341.4398298 | I20: 3 | J20: =L19+M19 -> 89325.52738 | K20: =K19*(1+$D$6) -> 29920.18438 | L20: =J20-K20 -> 59405.34299 | M20: =L20*$D$12 -> 1782.16029
B21: 4 | C21: =E20+F20-G20 -> 61357.33643 | D21: =D20*(1+$D$6) -> 30668.18899 | E21: =C21-D21 -> 30689.14744 | F21: =E21*$D$12 -> 920.6744231 | G21: =F21*$D$13 -> 174.9281404 | I21: 4 | J21: =L20+M20 -> 61187.50328 | K21: =K20*(1+$D$6) -> 30668.18899 | L21: =J21-K21 -> 30519.31429 | M21: =L21*$D$12 -> 915.5794287
B22: 5 | C22: =E21+F21-G21 -> 31434.89372 | D22: =D21*(1+$D$6) -> 31434.89372 | E22: =C22-D22 -> 0 | F22: =E22*$D$12 -> 0 | G22: =F22*$D$13 -> 0 | I22: 5 | J22: =L21+M21 -> 31434.89372 | K22: =K21*(1+$D$6) -> 31434.89372 | L22: =J22-K22 -> 0 | M22: =L22*$D$12 -> 0
B25: na 10 lat
B26: Rok na emeryturze | C26: Wartość rachunku na początku okresu | D26: Wypłata na początku każdego roku: | E26: Kwota pozostała jako inwestycja | F26: Zyski w danym roku: | G26: Podatek Belki | I26: Rok na emeryturze | J26: Wartość rachunku na początku okresu | K26: Wypłata na początku każdego roku: | L26: Kwota pozostała jako inwestycja | M26: Zyski w danym roku:
B27: 1 | C27: 285662.0101 | D27: =$D$11 -> 28478.46223 | E27: =C27-D27 -> 257183.5479 | F27: =E27*$D$12 -> 7715.506437 | G27: =F27*$D$13 -> 1465.946223 | I27: 1 | J27: 278643.4499 | K27: =$D$11 -> 28478.46223 | L27: =J27-K27 -> 250164.9877 | M27: =L27*$D$12 -> 7504.949631
B28: 2 | C28: =E27+F27-G27 -> 263433.1081 | D28: =D27*(1+$D$6) -> 29190.42379 | E28: =C28-D28 -> 234242.6843 | F28: =E28*$D$12 -> 7027.28053 | G28: =F28*$D$13 -> 1335.183301 | I28: 2 | J28: =L27+M27 -> 257669.9373 | K28: =K27*(1+$D$6) -> 29190.42379 | L28: =J28-K28 -> 228479.5135 | M28: =L28*$D$12 -> 6854.385406
B29: 3 | C29: =E28+F28-G28 -> 239934.7816 | D29: =D28*(1+$D$6) -> 29920.18438 | E29: =C29-D29 -> 210014.5972 | F29: =E29*$D$12 -> 6300.437915 | G29: 1197.083204 | I29: 3 | J29: =L28+M28 -> 235333.8989 | K29: =K28*(1+$D$6) -> 29920.18438 | L29: =J29-K29 -> 205413.7145 | M29: =L29*$D$12 -> 6162.411436
B30: 4 | C30: 215117.9519 | D30: 30668.18899 | E30: =C30-D30 -> 184449.7629 | F30: 5533.492887 | G30: 1051.363648 | I30: 4 | J30: 211576.126 | K30: 30668.18899 | L30: =J30-K30 -> 180907.937 | M30: 5427.23811
B31: 5 | C31: 188931.8921 | D31: 31434.89372 | E31: =C31-D31 -> 157496.9984 | F31: 4724.909952 | G31: 897.7328909 | I31: 5 | J31: 186335.1751 | K31: 31434.89372 | L31: =J31-K31 -> 154900.2814 | M31: 4647.008442
B32: 6 | C32: 161324.1755 | D32: 32220.76606 | E32: 129103.4094 | F32: 3873.102282 | G32: 735.8894336 | I32: 6 | J32: 159547.2898 | K32: 32220.76606 | L32: 127326.5238 | M32: 3819.795713
B33: 7 | C33: 132240.6223 | D33: 33026.28521 | E33: 99214.33704 | F33: 2976.430111 | G33: 565.5217211 | I33: 7 | J33: 131146.3195 | K33: 33026.28521 | L33: 98120.03427 | M33: 2943.601028
B34: 8 | C34: 101625.2454 | D34: 33851.94234 | E34: 67773.30309 | F34: 2033.199093 | G34: 386.3078276 | I34: 8 | J34: 101063.6353 | K34: 33851.94234 | L34: 67211.69295 | M34: 2016.350789
B35: 9 | C35: 69420.19436 | D35: 34698.2409 | E35: 34721.95345 | F35: 1041.658604 | G35: 197.9151347 | I35: 9 | J35: 69228.04374 | K35: 34698.2409 | L35: 34529.80284 | M35: 1035.894085
B36: 10 | C36: 35565.69692 | D36: 35565.69692 | E36: -5.820766091e-11 | F36: -1.746229827e-12 | G36: -3.317836672e-13 | I36: 10 | J36: 35565.69692 | K36: 35565.69692 | L36: 7.275957614e-11 | M36: 2.182787284e-12
B39: na 15 lat
B40: Rok na emeryturze | C40: Wartość rachunku na początku okresu | D40: Wypłata na początku każdego roku: | E40: Kwota pozostała jako inwestycja | F40: Zyski w danym roku: | G40: Podatek Belki | I40: Rok na emeryturze | J40: Wartość rachunku na początku okresu | K40: Wypłata na początku każdego roku: | L40: Kwota pozostała jako inwestycja | M40: Zyski w danym roku:
B41: 1 | C41: 429226.5072 | D41: =$D$11 -> 28478.46223 | E41: =C41-D41 -> 400748.045 | F41: =E41*$D$12 -> 12022.44135 | G41: =F41*$D$13 -> 2284.263856 | I41: 1 | J41: 412962.1596 | K41: =$D$11 -> 28478.46223 | L41: =J41-K41 -> 384483.6974 | M41: =L41*$D$12 -> 11534.51092
B42: 2 | C42: =E41+F41-G41 -> 410486.2225 | D42: =D41*(1+$D$6) -> 29190.42379 | E42: =C42-D42 -> 381295.7987 | F42: =E42*$D$12 -> 11438.87396 | G42: =F42*$D$13 -> 2173.386052 | I42: 2 | J42: =L41+M41 -> 396018.2083 | K42: =K41*(1+$D$6) -> 29190.42379 | L42: =J42-K42 -> 366827.7845 | M42: =L42*$D$12 -> 11004.83354
B43: 3 | C43: =E42+F42-G42 -> 390561.2866 | D43: =D42*(1+$D$6) -> 29920.18438 | E43: =C43-D43 -> 360641.1022 | F43: =E43*$D$12 -> 10819.23307 | G43: 2055.654283 | I43: 3 | J43: =L42+M42 -> 377832.6181 | K43: =K42*(1+$D$6) -> 29920.18438 | L43: =J43-K43 -> 347912.4337 | M43: =L43*$D$12 -> 10437.37301
B44: 4 | C44: 369404.681 | D44: 30668.18899 | E44: =C44-D44 -> 338736.492 | F44: 10162.09476 | G44: 1930.798004 | I44: 4 | J44: 358349.8067 | K44: 30668.18899 | L44: =J44-K44 -> 327681.6177 | M44: 9830.448531
B45: 5 | C45: 346967.7887 | D45: 31434.89372 | E45: =C45-D45 -> 315532.895 | F45: 9465.986851 | G45: 1798.537502 | I45: 5 | J45: 337512.0662 | K45: 31434.89372 | L45: =J45-K45 -> 306077.1725 | M45: 9182.315176
B46: 6 | C46: 323200.3444 | D46: 32220.76606 | E46: 290979.5783 | F46: 8729.387349 | G46: 1658.583596 | I46: 6 | J46: 315259.4877 | K46: 32220.76606 | L46: 283038.7216 | M46: 8491.161649
B47: 7 | C47: 298050.3821 | D47: 33026.28521 | E47: 265024.0969 | F47: 7950.722906 | G47: 1510.637352 | I47: 7 | J47: 291529.8833 | K47: 33026.28521 | L47: 258503.5981 | M47: 7755.107942
B48: 8 | C48: 271464.1824 | D48: 33851.94234 | E48: 237612.2401 | F48: 7128.367202 | G48: 1354.389768 | I48: 8 | J48: 266258.706 | K48: 33851.94234 | L48: 232406.7637 | M48: 6972.20291
B49: 9 | C49: 243386.2175 | D49: 34698.2409 | E49: 208687.9766 | F49: 6260.639298 | G49: 1189.521467 | I49: 9 | J49: 239378.9666 | K49: 34698.2409 | L49: 204680.7257 | M49: 6140.421771
B50: 10 | C50: 213759.0944 | D50: 35565.69692 | E50: 178193.3975 | F50: 5345.801925 | G50: 1015.702366 | I50: 10 | J50: 210821.1475 | K50: 35565.69692 | L50: 175255.4505 | M50: 5257.663516
B51: 11 | C51: 182523.4971 | D51: 36454.83935 | E51: 146068.6577 | F51: 4382.059731 | G51: 832.591349 | I51: 11 | J51: 180513.1141 | K51: 36454.83935 | L51: 144058.2747 | M51: 4321.748241
B52: 12 | C52: 149618.1261 | D52: 37366.21033 | E52: 112251.9158 | F52: 3367.557473 | G52: 639.8359199 | I52: 12 | J52: 148380.0229 | K52: 37366.21033 | L52: 111013.8126 | M52: 3330.414379
B53: 13 | C53: 114979.6373 | D53: 38300.36559 | E53: 76679.27173 | F53: 2300.378152 | G53: 437.0718489 | I53: 13 | J53: 114344.227 | K53: 38300.36559 | L53: 76043.86141 | M53: 2281.315842
B54: 14 | C54: 78542.57803 | D54: 39257.87473 | E54: 39284.70331 | F54: 1178.541099 | G54: 223.9228088 | I54: 14 | J54: 78325.17725 | K54: 39257.87473 | L54: 39067.30252 | M54: 1172.019076
B55: 15 | C55: 40239.3216 | D55: 40239.3216 | E55: -8.221832104e-10 | F55: -2.466549631e-11 | G55: -4.686444299e-12 | I55: 15 | J55: 40239.3216 | K55: 40239.3216 | L55: -8.731149137e-10 | M55: -2.619344741e-11
B58: na 20 lat
B59: Rok na emeryturze | C59: Wartość rachunku na początku okresu | D59: Wypłata na początku każdego roku: | E59: Kwota pozostała jako inwestycja | F59: Zyski w danym roku: | G59: Podatek Belki | I59: Rok na emeryturze | J59: Wartość rachunku na początku okresu | K59: Wypłata na początku każdego roku: | L59: Kwota pozostała jako inwestycja | M59: Zyski w danym roku:
B60: 1 | C60: 573282.2305 | D60: =$D$11 -> 28478.46223 | E60: =C60-D60 -> 544803.7682 | F60: =E60*$D$12 -> 16344.11305 | G60: =F60*$D$13 -> 3105.381479 | I60: 1 | J60: 544052.2053 | K60: =$D$11 -> 28478.46223 | L60: =J60-K60 -> 515573.7431 | M60: =L60*$D$12 -> 15467.21229
B61: 2 | C61: =E60+F60-G60 -> 558042.4998 | D61: =D60*(1+$D$6) -> 29190.42379 | E61: =C61-D61 -> 528852.076 | F61: =E61*$D$12 -> 15865.56228 | G61: =F61*$D$13 -> 3014.456833 | I61: 2 | J61: =L60+M60 -> 531040.9554 | K61: =K60*(1+$D$6) -> 29190.42379 | L61: =J61-K61 -> 501850.5316 | M61: =L61*$D$12 -> 15055.51595
B62: 3 | C62: =E61+F61-G61 -> 541703.1815 | D62: =D61*(1+$D$6) -> 29920.18438 | E62: =C62-D62 -> 511782.9971 | F62: =E62*$D$12 -> 15353.48991 | G62: 2917.163083 | I62: 3 | J62: =L61+M61 -> 516906.0475 | K62: =K61*(1+$D$6) -> 29920.18438 | L62: =J62-K62 -> 486985.8631 | M62: =L62*$D$12 -> 14609.57589
B63: 4 | C63: 524219.3239 | D63: 30668.18899 | E63: =C63-D63 -> 493551.1349 | F63: 14806.53405 | G63: 2813.241469 | I63: 4 | J63: 501595.439 | K63: 30668.18899 | L63: =J63-K63 -> 470927.25 | M63: 14127.8175
B64: 5 | C64: 505544.4275 | D64: 31434.89372 | E64: =C64-D64 -> 474109.5338 | F64: 14223.28601 | G64: 2702.424342 | I64: 5 | J64: 485055.0675 | K64: 31434.89372 | L64: =J64-K64 -> 453620.1738 | M64: 13608.60521
B65: 6 | C65: 485630.3954 | D65: 32220.76606 | E65: 453409.6294 | F65: 13602.28888 | G65: 2584.434887 | I65: 6 | J65: 467228.779 | K65: 32220.76606 | L65: 435008.013 | M65: 13050.24039
B66: 7 | C66: 464427.4834 | D66: 33026.28521 | E66: 431401.1982 | F66: 12942.03594 | G66: 2458.986829 | I66: 7 | J66: 448058.2534 | K66: 33026.28521 | L66: 415031.9681 | M66: 12450.95904
B67: 8 | C67: 441884.2473 | D67: 33851.94234 | E67: 408032.3049 | F67: 12240.96915 | G67: 2325.784138 | I67: 8 | J67: 427482.9272 | K67: 33851.94234 | L67: 393630.9849 | M67: 11808.92955
B68: 9 | C68: 417947.4899 | D68: 34698.2409 | E68: 383249.249 | F68: 11497.47747 | G68: 2184.52072 | I68: 9 | J68: 405439.9144 | K68: 34698.2409 | L68: 370741.6735 | M68: 11122.2502
B69: 10 | C69: 392562.2058 | D69: 35565.69692 | E69: 356996.5089 | F69: 10709.89527 | G69: 2034.880101 | I69: 10 | J69: 381863.9237 | K69: 35565.69692 | L69: 346298.2268 | M69: 10388.9468
B70: 11 | C70: 365671.524 | D70: 36454.83935 | E70: 329216.6847 | F70: 9876.500541 | G70: 1876.535103 | I70: 11 | J70: 356687.1736 | K70: 36454.83935 | L70: 320232.3342 | M70: 9606.970027
B71: 12 | C71: 337216.6501 | D71: 37366.21033 | E71: 299850.4398 | F71: 8995.513194 | G71: 1709.147507 | I71: 12 | J71: 329839.3043 | K71: 37366.21033 | L71: 292473.0939 | M71: 8774.192818
B72: 13 | C72: 307136.8055 | D72: 38300.36559 | E72: 268836.4399 | F72: 8065.093197 | G72: 1532.367707 | I72: 13 | J72: 301247.2867 | K72: 38300.36559 | L72: 262946.9212 | M72: 7888.407635
B73: 14 | C73: 275369.1654 | D73: 39257.87473 | E73: 236111.2907 | F73: 7083.33872 | G73: 1345.834357 | I73: 14 | J73: 270835.3288 | K73: 39257.87473 | L73: 231577.4541 | M73: 6947.323622
B74: 15 | C74: 241848.795 | D74: 40239.3216 | E74: 201609.4734 | F74: 6048.284203 | G74: 1149.173998 | I74: 15 | J74: 238524.7777 | K74: 40239.3216 | L74: 198285.4561 | M74: 5948.563683
B75: 16 | C75: 206508.5836 | D75: 41245.30464 | E75: 165263.279 | F75: 4957.89837 | G75: 942.0006902 | I75: 16 | J75: 204234.0198 | K75: 41245.30464 | L75: 162988.7151 | M75: 4889.661454
B76: 17 | C76: 169279.1767 | D76: 42276.43725 | E76: 127002.7394 | F76: 3810.082182 | G76: 723.9156146 | I76: 17 | J76: 167878.3766 | K76: 42276.43725 | L76: 125601.9393 | M76: 3768.05818
B77: 18 | C77: 130088.906 | D77: 43333.34818 | E77: 86755.5578 | F77: 2602.666734 | G77: 494.5066794 | I77: 18 | J77: 129369.9975 | K77: 43333.34818 | L77: 86036.64934 | M77: 2581.09948
B78: 19 | C78: 88863.71785 | D78: 44416.68189 | E78: 44447.03596 | F78: 1333.411079 | G78: 253.348105 | I78: 19 | J78: 88617.74882 | K78: 44416.68189 | L78: 44201.06693 | M78: 1326.032008
B79: 20 | C79: 45527.09894 | D79: 45527.09894 | E79: 4.802132025e-10 | F79: 1.440639608e-11 | G79: 2.737215254e-12 | I79: 20 | J79: 45527.09894 | K79: 45527.09894 | L79: 3.346940503e-10 | M79: 1.004082151e-11
B82: na 25 lat
B83: Rok na emeryturze | C83: Wartość rachunku na początku okresu | D83: Wypłata na początku każdego roku: | E83: Kwota pozostała jako inwestycja | F83: Zyski w danym roku: | G83: Podatek Belki | I83: Rok na emeryturze | J83: Wartość rachunku na początku okresu | K83: Wypłata na początku każdego roku: | L83: Kwota pozostała jako inwestycja | M83: Zyski w danym roku:
B84: 1 | C84: 717830.8607 | D84: =$D$11 -> 28478.46223 | E84: =C84-D84 -> 689352.3985 | F84: =E84*$D$12 -> 20680.57195 | G84: =F84*$D$13 -> 3929.308671 | I84: 1 | J84: 671991.1954 | K84: =$D$11 -> 28478.46223 | L84: =J84-K84 -> 643512.7331 | M84: =L84*$D$12 -> 19305.38199
B85: 2 | C85: =E84+F84-G84 -> 706103.6618 | D85: =D84*(1+$D$6) -> 29190.42379 | E85: =C85-D85 -> 676913.238 | F85: =E85*$D$12 -> 20307.39714 | G85: =F85*$D$13 -> 3858.405456 | I85: 2 | J85: =L84+M84 -> 662818.1151 | K85: =K84*(1+$D$6) -> 29190.42379 | L85: =J85-K85 -> 633627.6913 | M85: =L85*$D$12 -> 19008.83074
B86: 3 | C86: =E85+F85-G85 -> 693362.2297 | D86: =D85*(1+$D$6) -> 29920.18438 | E86: =C86-D86 -> 663442.0453 | F86: =E86*$D$12 -> 19903.26136 | G86: 3781.619658 | I86: 3 | J86: =L85+M85 -> 652636.5221 | K86: =K85*(1+$D$6) -> 29920.18438 | L86: =J86-K86 -> 622716.3377 | M86: =L86*$D$12 -> 18681.49013
B87: 4 | C87: 679563.687 | D87: 30668.18899 | E87: =C87-D87 -> 648895.498 | F87: 19466.86494 | G87: 3698.704338 | I87: 4 | J87: 641397.8278 | K87: 30668.18899 | L87: =J87-K87 -> 610729.6388 | M87: 18321.88917
B88: 5 | C88: 664663.6586 | D88: 31434.89372 | E88: =C88-D88 -> 633228.7649 | F88: 18996.86295 | G88: 3609.40396 | I88: 5 | J88: 629051.528 | K88: 31434.89372 | L88: =J88-K88 -> 597616.6343 | M88: 17928.49903
B89: 6 | C89: 648616.2238 | D89: 32220.76606 | E89: 616395.4578 | F89: 18491.86373 | G89: 3513.454109 | I89: 6 | J89: 615545.1333 | K89: 32220.76606 | L89: 583324.3673 | M89: 17499.73102
B90: 7 | C90: 631373.8674 | D90: 33026.28521 | E90: 598347.5822 | F90: 17950.42747 | G90: 3410.581219 | I90: 7 | J90: 600824.0983 | K90: 33026.28521 | L90: 567797.8131 | M90: 17033.93439
B91: 8 | C91: 612887.4284 | D91: 33851.94234 | E91: 579035.4861 | F91: 17371.06458 | G91: 3300.502271 | I91: 8 | J91: 584831.7475 | K91: 33851.94234 | L91: 550979.8051 | M91: 16529.39415
B92: 9 | C92: 593106.0484 | D92: 34698.2409 | E92: 558407.8075 | F92: 16752.23423 | G92: 3182.924503 | I92: 9 | J92: 567509.1993 | K92: 34698.2409 | L92: 532810.9584 | M92: 15984.32875
B93: 10 | C93: 571977.1172 | D93: 35565.69692 | E93: 536411.4203 | F93: 16092.34261 | G93: 3057.545096 | I93: 10 | J93: 548795.2871 | K93: 35565.69692 | L93: 513229.5902 | M93: 15396.88771
B94: 11 | C94: 549446.2178 | D94: 36454.83935 | E94: 512991.3785 | F94: 15389.74135 | G94: 2924.050857 | I94: 11 | J94: 528626.4779 | K94: 36454.83935 | L94: 492171.6385 | M94: 14765.14916
B95: 12 | C95: 525457.069 | D95: 37366.21033 | E95: 488090.8586 | F95: 14642.72576 | G95: 2782.117894 | I95: 12 | J95: 506936.7877 | K95: 37366.21033 | L95: 469570.5774 | M95: 14087.11732
B96: 13 | C96: 499951.4665 | D96: 38300.36559 | E96: 461651.1009 | F96: 13849.53303 | G96: 2631.411275 | I96: 13 | J96: 483657.6947 | K96: 38300.36559 | L96: 445357.3291 | M96: 13360.71987
B97: 14 | C97: 472869.2227 | D97: 39257.87473 | E97: 433611.3479 | F97: 13008.34044 | G97: 2471.584683 | I97: 14 | J97: 458718.049 | K97: 39257.87473 | L97: 419460.1743 | M97: 12583.80523
B98: 15 | C98: 444148.1037 | D98: 40239.3216 | E98: 403908.7821 | F98: 12117.26346 | G98: 2302.280058 | I98: 15 | J98: 432043.9795 | K98: 40239.3216 | L98: 391804.6579 | M98: 11754.13974
B99: 16 | C99: 413723.7655 | D99: 41245.30464 | E99: 372478.4609 | F99: 11174.35383 | G99: 2123.127227 | I99: 16 | J99: 403558.7976 | K99: 41245.30464 | L99: 362313.493 | M99: 10869.40479
B100: 17 | C100: 381529.6875 | D100: 42276.43725 | E100: 339253.2502 | F100: 10177.59751 | G100: 1933.743526 | I100: 17 | J100: 373182.8978 | K100: 42276.43725 | L100: 330906.4605 | M100: 9927.193816
B101: 18 | C101: 347497.1042 | D101: 43333.34818 | E101: 304163.756 | F101: 9124.91268 | G101: 1733.733409 | I101: 18 | J101: 340833.6543 | K101: 43333.34818 | L101: 297500.3062 | M101: 8925.009185
B102: 19 | C102: 311554.9353 | D102: 44416.68189 | E102: 267138.2534 | F102: 8014.147602 | G102: 1522.688044 | I102: 19 | J102: 306425.3153 | K102: 44416.68189 | L102: 262008.6335 | M102: 7860.259004
B103: 20 | C103: 273629.713 | D103: 45527.09894 | E103: 228102.614 | F103: 6843.078421 | G103: 1300.1849 | I103: 20 | J103: 269868.8925 | K103: 45527.09894 | L103: 224341.7935 | M103: 6730.253806
B104: 21 | C104: 233645.5075 | D104: 46665.27641 | E104: 186980.2311 | F104: 5609.406934 | G104: 1065.787317 | I104: 21 | J104: 231072.0473 | K104: 46665.27641 | L104: 184406.7709 | M104: 5532.203127
B105: 22 | C105: 191523.8507 | D105: 47831.90832 | E105: 143691.9424 | F105: 4310.758273 | G105: 819.0440718 | I105: 22 | J105: 189938.974 | K105: 47831.90832 | L105: 142107.0657 | M105: 4263.211972
B106: 23 | C106: 147183.6566 | D106: 49027.70603 | E106: 98155.9506 | F106: 2944.678518 | G106: 559.4889184 | I106: 23 | J106: 146370.2777 | K106: 49027.70603 | L106: 97342.57167 | M106: 2920.27715
B107: 24 | C107: 100541.1402 | D107: 50253.39868 | E107: 50287.74153 | F107: 1508.632246 | G107: 286.6401267 | I107: 24 | J107: 100262.8488 | K107: 50253.39868 | L107: 50009.45014 | M107: 1500.283504
B108: 25 | C108: 51509.73364 | D108: 51509.73364 | E108: -1.513399184e-09 | F108: -4.540197551e-11 | G108: -8.626375347e-12 | I108: 25 | J108: 51509.73364 | K108: 51509.73364 | L108: -3.346940503e-10 | M108: -1.004082151e-11
B111: na 30 lat
B112: Rok na emeryturze | C112: Wartość rachunku na początku okresu | D112: Wypłata na początku każdego roku: | E112: Kwota pozostała jako inwestycja | F112: Zyski w danym roku: | G112: Podatek Belki | I112: Rok na emeryturze | J112: Wartość rachunku na początku okresu | K112: Wypłata na początku każdego roku: | L112: Kwota pozostała jako inwestycja | M112: Zyski w danym roku:
B113: 1 | C113: 862874.0845 | D113: =$D$11 -> 28478.46223 | E113: =C113-D113 -> 834395.6223 | F113: =E113*$D$12 -> 25031.86867 | G113: =F113*$D$13 -> 4756.055047 | I113: 1 | J113: 796854.8728 | K113: =$D$11 -> 28478.46223 | L113: =J113-K113 -> 768376.4106 | M113: =L113*$D$12 -> 23051.29232
B114: 2 | C114: =E113+F113-G113 -> 854671.4359 | D114: =D113*(1+$D$6) -> 29190.42379 | E114: =C114-D114 -> 825481.0121 | F114: =E114*$D$12 -> 24764.43036 | G114: =F114*$D$13 -> 4705.241769 | I114: 2 | J114: =L113+M113 -> 791427.7029 | K114: =K113*(1+$D$6) -> 29190.42379 | L114: =J114-K114 -> 762237.2791 | M114: =L114*$D$12 -> 22867.11837
B115: 3 | C115: =E114+F114-G114 -> 845540.2007 | D115: =D114*(1+$D$6) -> 29920.18438 | E115: =C115-D115 -> 815620.0163 | F115: =E115*$D$12 -> 24468.60049 | G115: 4649.034093 | I115: 3 | J115: =L114+M114 -> 785104.3975 | K115: =K114*(1+$D$6) -> 29920.18438 | L115: =J115-K115 -> 755184.2131 | M115: =L115*$D$12 -> 22655.52639
B116: 4 | C116: 835439.5827 | D116: 30668.18899 | E116: =C116-D116 -> 804771.3937 | F116: 24143.14181 | G116: 4587.196944 | I116: 4 | J116: 777839.7395 | K116: 30668.18899 | L116: =J116-K116 -> 747171.5505 | M116: 22415.14652
B117: 5 | C117: 824327.3386 | D117: 31434.89372 | E117: =C117-D117 -> 792892.4449 | F117: 23786.77335 | G117: 4519.486936 | I117: 5 | J117: 769586.6971 | K117: 31434.89372 | L117: =J117-K117 -> 738151.8033 | M117: 22144.5541
B118: 6 | C118: 812159.7313 | D118: 32220.76606 | E118: 779938.9652 | F118: 23398.16896 | G118: 4445.652102 | I118: 6 | J118: 760296.3574 | K118: 32220.76606 | L118: 728075.5914 | M118: 21842.26774
B119: 7 | C119: 798891.4821 | D119: 33026.28521 | E119: 765865.1969 | F119: 22975.95591 | G119: 4365.431622 | I119: 7 | J119: 749917.8591 | K119: 33026.28521 | L119: 716891.5739 | M119: 21506.74722
B120: 8 | C120: 784475.7211 | D120: 33851.94234 | E120: 750623.7788 | F120: 22518.71336 | G120: 4278.555539 | I120: 8 | J120: 738398.3211 | K120: 33851.94234 | L120: 704546.3788 | M120: 21136.39136
B121: 9 | C121: 768863.9366 | D121: 34698.2409 | E121: 734165.6957 | F121: 22024.97087 | G121: 4184.744466 | I121: 9 | J121: 725682.7701 | K121: 34698.2409 | L121: 690984.5292 | M121: 20729.53588
B122: 10 | C122: 752005.9221 | D122: 35565.69692 | E122: 716440.2252 | F122: 21493.20676 | G122: 4083.709284 | I122: 10 | J122: 711714.0651 | K122: 35565.69692 | L122: 676148.3682 | M122: 20284.45105
B123: 11 | C123: 733849.7227 | D123: 36454.83935 | E123: 697394.8833 | F123: 20921.8465 | G123: 3975.150835 | I123: 11 | J123: 696432.8192 | K123: 36454.83935 | L123: 659977.9799 | M123: 19799.3394
B124: 12 | C124: 714341.579 | D124: 37366.21033 | E124: 676975.3687 | F124: 20309.26106 | G124: 3858.759601 | I124: 12 | J124: 679777.3193 | K124: 37366.21033 | L124: 642411.109 | M124: 19272.33327
B125: 13 | C125: 693425.8701 | D125: 38300.36559 | E125: 655125.5045 | F125: 19653.76514 | G125: 3734.215376 | I125: 13 | J125: 661683.4422 | K125: 38300.36559 | L125: 623383.0766 | M125: 18701.4923
B126: 14 | C126: 671045.0543 | D126: 39257.87473 | E126: 631787.1796 | F126: 18953.61539 | G126: 3601.186923 | I126: 14 | J126: 642084.5689 | K126: 39257.87473 | L126: 602826.6942 | M126: 18084.80083
B127: 15 | C127: 647139.608 | D127: 40239.3216 | E127: 606900.2864 | F127: 18207.00859 | G127: 3459.331633 | I127: 15 | J127: 620911.495 | K127: 40239.3216 | L127: 580672.1734 | M127: 17420.1652
B128: 16 | C128: 621647.9634 | D128: 41245.30464 | E128: 580402.6588 | F128: 17412.07976 | G128: 3308.295155 | I128: 16 | J128: 598092.3386 | K128: 41245.30464 | L128: 556847.034 | M128: 16705.41102
B129: 17 | C129: 594506.4434 | D129: 42276.43725 | E129: 552230.0061 | F129: 16566.90018 | G129: 3147.711035 | I129: 17 | J129: 573552.445 | K129: 42276.43725 | L129: 531276.0078 | M129: 15938.28023
B130: 18 | C130: 565649.1953 | D130: 43333.34818 | E130: 522315.8471 | F130: 15669.47541 | G130: 2977.200328 | I130: 18 | J130: 547214.288 | K130: 43333.34818 | L130: 503880.9398 | M130: 15116.42819
B131: 19 | C131: 535008.1222 | D131: 44416.68189 | E131: 490591.4403 | F131: 14717.74321 | G131: 2796.37121 | I131: 19 | J131: 518997.368 | K131: 44416.68189 | L131: 474580.6861 | M131: 14237.42058
B132: 20 | C132: 502512.8123 | D132: 45527.09894 | E132: 456985.7133 | F132: 13709.5714 | G132: 2604.818566 | I132: 20 | J132: 488818.1067 | K132: 45527.09894 | L132: 443291.0078 | M132: 13298.73023
B133: 21 | C133: 468090.4662 | D133: 46665.27641 | E133: 421425.1898 | F133: 12642.75569 | G133: 2402.123582 | I133: 21 | J133: 456589.738 | K133: 46665.27641 | L133: 409924.4616 | M133: 12297.73385
B134: 22 | C134: 431665.8219 | D134: 47831.90832 | E134: 383833.9135 | F134: 11515.01741 | G134: 2187.853307 | I134: 22 | J134: 422222.1955 | K134: 47831.90832 | L134: 374390.2871 | M134: 11231.70861
B135: 23 | C135: 393161.0776 | D135: 49027.70603 | E135: 344133.3716 | F135: 10324.00115 | G135: 1961.560218 | I135: 23 | J135: 385621.9957 | K135: 49027.70603 | L135: 336594.2897 | M135: 10097.82869
B136: 24 | C136: 352495.8125 | D136: 50253.39868 | E136: 302242.4139 | F136: 9067.272416 | G136: 1722.781759 | I136: 24 | J136: 346692.1184 | K136: 50253.39868 | L136: 296438.7197 | M136: 8893.161592
B137: 25 | C137: 309586.9045 | D137: 51509.73364 | E137: 258077.1709 | F137: 7742.315127 | G137: 1471.039874 | I137: 25 | J137: 305331.8813 | K137: 51509.73364 | L137: 253822.1477 | M137: 7614.66443
B138: 26 | C138: 264348.4461 | D138: 52797.47699 | E138: 211550.9692 | F138: 6346.529075 | G138: 1205.840524 | I138: 26 | J138: 261436.8121 | K138: 52797.47699 | L138: 208639.3351 | M138: 6259.180054
B139: 27 | C139: 216691.6577 | D139: 54117.41391 | E139: 162574.2438 | F139: 4877.227314 | G139: 926.6731896 | I139: 27 | J139: 214898.5152 | K139: 54117.41391 | L139: 160781.1013 | M139: 4823.433038
B140: 28 | C140: 166524.7979 | D140: 55470.34926 | E140: 111054.4487 | F140: 3331.63346 | G140: 633.0103573 | I140: 28 | J140: 165604.5343 | K140: 55470.34926 | L140: 110134.185 | M140: 3304.025551
B141: 29 | C141: 113753.0718 | D141: 56857.10799 | E141: 56895.96377 | F141: 1706.878913 | G141: 324.3069935 | I141: 29 | J141: 113438.2106 | K141: 56857.10799 | L141: 56581.10261 | M141: 1697.433078
B142: 30 | C142: 58278.53569 | D142: 58278.53569 | E142: 3.274180926e-10 | F142: 9.822542779e-12 | G142: 1.866283128e-12 | I142: 30 | J142: 58278.53569 | K142: 58278.53569 | L142: -1.149601303e-09 | M142: -3.448803909e-11
B145: na 35 lat
B146: Rok na emeryturze | C146: Wartość rachunku na początku okresu | D146: Wypłata na początku każdego roku: | E146: Kwota pozostała jako inwestycja | F146: Zyski w danym roku: | G146: Podatek Belki | I146: Rok na emeryturze | J146: Wartość rachunku na początku okresu | K146: Wypłata na początku każdego roku: | L146: Kwota pozostała jako inwestycja | M146: Zyski w danym roku:
B147: 1 | C147: 1008413.594 | D147: =$D$11 -> 28478.46223 | E147: =C147-D147 -> 979935.1319 | F147: =E147*$D$12 -> 29398.05396 | G147: =F147*$D$13 -> 5585.630252 | I147: 1 | J147: 918717.16 | K147: =$D$11 -> 28478.46223 | L147: =J147-K147 -> 890238.6978 | M147: =L147*$D$12 -> 26707.16093
B148: 2 | C148: =E147+F147-G147 -> 1003747.556 | D148: =D147*(1+$D$6) -> 29190.42379 | E148: =C148-D148 -> 974557.1318 | F148: =E148*$D$12 -> 29236.71396 | G148: =F148*$D$13 -> 5554.975651 | I148: 2 | J148: =L147+M147 -> 916945.8587 | K148: =K147*(1+$D$6) -> 29190.42379 | L148: =J148-K148 -> 887755.435 | M148: =L148*$D$12 -> 26632.66305
B149: 3 | C149: =E148+F148-G148 -> 998238.8701 | D149: =D148*(1+$D$6) -> 29920.18438 | E149: =C149-D149 -> 968318.6858 | F149: =E149*$D$12 -> 29049.56057 | G149: 5519.416509 | I149: 3 | J149: =L148+M148 -> 914388.098 | K149: =K148*(1+$D$6) -> 29920.18438 | L149: =J149-K149 -> 884467.9136 | M149: =L149*$D$12 -> 26534.03741
B150: 4 | C150: 991848.8298 | D150: 30668.18899 | E150: =C150-D150 -> 961180.6408 | F150: 28835.41922 | G150: 5478.729653 | I150: 4 | J150: 911001.951 | K150: 30668.18899 | L150: =J150-K150 -> 880333.762 | M150: 26410.01286
B151: 5 | C151: 984537.3304 | D151: 31434.89372 | E151: =C151-D151 -> 953102.4367 | F151: 28593.0731 | G151: 5432.683889 | I151: 5 | J151: 906743.7749 | K151: 31434.89372 | L151: =J151-K151 -> 875308.8812 | M151: 26259.26644
B152: 6 | C152: 976262.8259 | D152: 32220.76606 | E152: 944042.0598 | F152: 28321.26179 | G152: 5381.039741 | I152: 6 | J152: 901568.1476 | K152: 32220.76606 | L152: 869347.3816 | M152: 26080.42145
B153: 7 | C153: 966982.2819 | D153: 33026.28521 | E153: 933955.9967 | F153: 28018.6799 | G153: 5323.549181 | I153: 7 | J153: 895427.803 | K153: 33026.28521 | L153: 862401.5178 | M153: 25872.04553
B154: 8 | C154: 956651.1274 | D154: 33851.94234 | E154: 922799.185 | F154: 27683.97555 | G154: 5259.955355 | I154: 8 | J154: 888273.5633 | K154: 33851.94234 | L154: 854421.621 | M154: 25632.64863
B155: 9 | C155: 945223.2052 | D155: 34698.2409 | E155: 910524.9643 | F155: 27315.74893 | G155: 5189.992297 | I155: 9 | J155: 880054.2696 | K155: 34698.2409 | L155: 845356.0287 | M155: 25360.68086
B156: 10 | C156: 932650.721 | D156: 35565.69692 | E156: 897085.0241 | F156: 26912.55072 | G156: 5113.384637 | I156: 10 | J156: 870716.7096 | K156: 35565.69692 | L156: 835151.0127 | M156: 25054.53038
B157: 11 | C157: 918884.1901 | D157: 36454.83935 | E157: 882429.3508 | F157: 26472.88052 | G157: 5029.8473 | I157: 11 | J157: 860205.543 | K157: 36454.83935 | L157: 823750.7037 | M157: 24712.52111
B158: 12 | C158: 903872.384 | D158: 37366.21033 | E158: 866506.1737 | F158: 25995.18521 | G158: 4939.08519 | I158: 12 | J158: 848463.2248 | K158: 37366.21033 | L158: 811097.0145 | M158: 24332.91043
B159: 13 | C159: 887562.2737 | D159: 38300.36559 | E159: 849261.9081 | F159: 25477.85724 | G159: 4840.792876 | I159: 13 | J159: 835429.9249 | K159: 38300.36559 | L159: 797129.5593 | M159: 23913.88678
B160: 14 | C160: 869898.9725 | D160: 39257.87473 | E160: 830641.0978 | F160: 24919.23293 | G160: 4734.654257 | I160: 14 | J160: 821043.4461 | K160: 39257.87473 | L160: 781785.5714 | M160: 23453.56714
B161: 15 | C161: 850825.6764 | D161: 40239.3216 | E161: 810586.3548 | F161: 24317.59065 | G161: 4620.342223 | I161: 15 | J161: 805239.1385 | K161: 40239.3216 | L161: 764999.8169 | M161: 22949.99451
B162: 16 | C162: 830283.6033 | D162: 41245.30464 | E162: 789038.2986 | F162: 23671.14896 | G162: 4497.518302 | I162: 16 | J162: 787949.8114 | K162: 41245.30464 | L162: 746704.5068 | M162: 22401.1352
B163: 17 | C163: 808211.9293 | D163: 42276.43725 | E163: 765935.492 | F163: 22978.06476 | G163: 4365.832305 | I163: 17 | J163: 769105.642 | K163: 42276.43725 | L163: 726829.2047 | M163: 21804.87614
B164: 18 | C164: 784547.7245 | D164: 43333.34818 | E164: 741214.3763 | F164: 22236.43129 | G164: 4224.921945 | I164: 18 | J164: 748634.0809 | K164: 43333.34818 | L164: 705300.7327 | M164: 21159.02198
B165: 19 | C165: 759225.8856 | D165: 44416.68189 | E165: 714809.2038 | F165: 21444.27611 | G165: 4074.412461 | I165: 19 | J165: 726459.7547 | K165: 44416.68189 | L165: 682043.0728 | M165: 20461.29218
B166: 20 | C166: 732179.0674 | D166: 45527.09894 | E166: 686651.9685 | F166: 20599.55905 | G166: 3913.91622 | I166: 20 | J166: 702504.365 | K166: 45527.09894 | L166: 656977.266 | M166: 19709.31798
B167: 21 | C167: 703337.6113 | D167: 46665.27641 | E167: 656672.3349 | F167: 19700.17005 | G167: 3743.032309 | I167: 21 | J167: 676686.584 | K167: 46665.27641 | L167: 630021.3076 | M167: 18900.63923
B168: 22 | C168: 672629.4726 | D168: 47831.90832 | E168: 624797.5643 | F168: 18743.92693 | G168: 3561.346117 | I168: 22 | J168: 648921.9468 | K168: 47831.90832 | L168: 601090.0385 | M168: 18032.70116
B169: 23 | C169: 639980.1451 | D169: 49027.70603 | E169: 590952.4391 | F169: 17728.57317 | G169: 3368.428903 | I169: 23 | J169: 619122.7397 | K169: 49027.70603 | L169: 570095.0336 | M169: 17102.85101
B170: 24 | C170: 605312.5834 | D170: 50253.39868 | E170: 555059.1847 | F170: 16651.77554 | G170: 3163.837353 | I170: 24 | J170: 587197.8846 | K170: 50253.39868 | L170: 536944.486 | M170: 16108.33458
B171: 25 | C171: 568547.1229 | D171: 51509.73364 | E171: 517037.3892 | F171: 15511.12168 | G171: 2947.113119 | I171: 25 | J171: 553052.8205 | K171: 51509.73364 | L171: 501543.0869 | M171: 15046.29261
B172: 26 | C172: 529601.3978 | D172: 52797.47699 | E172: 476803.9208 | F172: 14304.11762 | G172: 2717.782349 | I172: 26 | J172: 516589.3795 | K172: 52797.47699 | L172: 463791.9025 | M172: 13913.75708
B173: 27 | C173: 488390.2561 | D173: 54117.41391 | E173: 434272.8422 | F173: 13028.18527 | G173: 2475.3552 | I173: 27 | J173: 477705.6596 | K173: 54117.41391 | L173: 423588.2457 | M173: 12707.64737
B174: 28 | C174: 444825.6722 | D174: 55470.34926 | E174: 389355.323 | F174: 11680.65969 | G174: 2219.325341 | I174: 28 | J174: 436295.8931 | K174: 55470.34926 | L174: 380825.5438 | M174: 11424.76631
B175: 29 | C175: 398816.6573 | D175: 56857.10799 | E175: 341959.5493 | F175: 10258.78648 | G175: 1949.169431 | I175: 29 | J175: 392250.3101 | K175: 56857.10799 | L175: 335393.2021 | M175: 10061.79606
B176: 30 | C176: 350269.1664 | D176: 58278.53569 | E176: 291990.6307 | F176: 8759.718921 | G176: 1664.346595 | I176: 30 | J176: 345454.9982 | K176: 58278.53569 | L176: 287176.4625 | M176: 8615.293875
B177: 31 | C177: 299086.003 | D177: 59735.49908 | E177: 239350.5039 | F177: 7180.515118 | G177: 1364.297872 | I177: 31 | J177: 295791.7564 | K177: 59735.49908 | L177: 236056.2573 | M177: 7081.687719
B178: 32 | C178: 245166.7212 | D178: 61228.88656 | E178: 183937.8346 | F178: 5518.135039 | G178: 1048.445657 | I178: 32 | J178: 243137.945 | K178: 61228.88656 | L178: 181909.0585 | M178: 5457.271754
B179: 33 | C179: 188407.524 | D179: 62759.60872 | E179: 125647.9153 | F179: 3769.437459 | G179: 716.1931171 | I179: 33 | J179: 187366.3302 | K179: 62759.60872 | L179: 124606.7215 | M179: 3738.201645
B180: 34 | C180: 128701.1596 | D180: 64328.59894 | E180: 64372.56069 | F180: 1931.176821 | G180: 366.9235959 | I180: 34 | J180: 128344.9231 | K180: 64328.59894 | L180: 64016.32419 | M180: 1920.489726
B181: 35 | C181: 65936.81391 | D181: 65936.81391 | E181: -1.28056854e-09 | F181: -3.84170562e-11 | G181: -7.299240679e-12 | I181: 35 | J181: 65936.81391 | K181: 65936.81391 | L181: -2.910383046e-10 | M181: -8.731149137e-12
B184: na 40 lat
B185: Rok na emeryturze | C185: Wartość rachunku na początku okresu | D185: Wypłata na początku każdego roku: | E185: Kwota pozostała jako inwestycja | F185: Zyski w danym roku: | G185: Podatek Belki | I185: Rok na emeryturze | J185: Wartość rachunku na początku okresu | K185: Wypłata na początku każdego roku: | L185: Kwota pozostała jako inwestycja | M185: Zyski w danym roku:
B186: 1 | C186: 1154451.088 | D186: =$D$11 -> 28478.46223 | E186: =C186-D186 -> 1125972.626 | F186: =E186*$D$12 -> 33779.17877 | G186: =F186*$D$13 -> 6418.043966 | I186: 1 | J186: 1037650.202 | K186: =$D$11 -> 28478.46223 | L186: =J186-K186 -> 1009171.74 | M186: =L186*$D$12 -> 30275.15221
B187: 2 | C187: =E186+F186-G186 -> 1153333.76 | D187: =D186*(1+$D$6) -> 29190.42379 | E187: =C187-D187 -> 1124143.337 | F187: =E187*$D$12 -> 33724.3001 | G187: =F187*$D$13 -> 6407.617018 | I187: 2 | J187: =L186+M186 -> 1039446.892 | K187: =K186*(1+$D$6) -> 29190.42379 | L187: =J187-K187 -> 1010256.469 | M187: =L187*$D$12 -> 30307.69406
B188: 3 | C188: =E187+F187-G187 -> 1151460.02 | D188: =D187*(1+$D$6) -> 29920.18438 | E188: =C188-D188 -> 1121539.835 | F188: =E188*$D$12 -> 33646.19506 | G188: 6392.777061 | I188: 3 | J188: =L187+M187 -> 1040564.163 | K188: =K187*(1+$D$6) -> 29920.18438 | L188: =J188-K188 -> 1010643.978 | M188: =L188*$D$12 -> 30319.31935
B189: 4 | C189: 1148793.253 | D189: 30668.18899 | E189: =C189-D189 -> 1118125.064 | F189: 33543.75193 | G189: 6373.312866 | I189: 4 | J189: 1040963.298 | K189: 30668.18899 | L189: =J189-K189 -> 1010295.109 | M189: 30308.85326
B190: 5 | C190: 1145295.503 | D190: 31434.89372 | E190: =C190-D190 -> 1113860.61 | F190: 33415.81829 | G190: 6349.005475 | I190: 5 | J190: 1040603.962 | K190: 31434.89372 | L190: =J190-K190 -> 1009169.068 | M190: 30275.07204
B191: 6 | C191: 1140927.422 | D191: 32220.76606 | E191: 1108706.656 | F191: 33261.19969 | G191: 6319.627941 | I191: 6 | J191: 1039444.14 | K191: 32220.76606 | L191: 1007223.374 | M191: 30216.70122
B192: 7 | C192: 1135648.228 | D192: 33026.28521 | E192: 1102621.943 | F192: 33078.65829 | G192: 6284.945074 | I192: 7 | J192: 1037440.075 | K192: 33026.28521 | L192: 1004413.79 | M192: 30132.4137
B193: 8 | C193: 1129415.656 | D193: 33851.94234 | E193: 1095563.714 | F193: 32866.91141 | G193: 6244.713168 | I193: 8 | J193: 1034546.204 | K193: 33851.94234 | L193: 1000694.262 | M193: 30020.82785
B194: 9 | C194: 1122185.912 | D194: 34698.2409 | E194: 1087487.671 | F194: 32624.63013 | G194: 6198.679725 | I194: 9 | J194: 1030715.089 | K194: 34698.2409 | L194: 996016.8485 | M194: 29880.50545
B195: 10 | C195: 1113913.622 | D195: 35565.69692 | E195: 1078347.925 | F195: 32350.43774 | G195: 6146.58317 | I195: 10 | J195: 1025897.354 | K195: 35565.69692 | L195: 990331.657 | M195: 29709.94971
B196: 11 | C196: 1104551.779 | D196: 36454.83935 | E196: 1068096.94 | F196: 32042.90819 | G196: 6088.152557 | I196: 11 | J196: 1020041.607 | K196: 36454.83935 | L196: 983586.7674 | M196: 29507.60302
B197: 12 | C197: 1094051.695 | D197: 37366.21033 | E197: 1056685.485 | F197: 31700.56455 | G197: 6023.107265 | I197: 12 | J197: 1013094.37 | K197: 37366.21033 | L197: 975728.16 | M197: 29271.8448
B198: 13 | C198: 1082362.942 | D198: 38300.36559 | E198: 1044062.577 | F198: 31321.8773 | G198: 5951.156688 | I198: 13 | J198: 1005000.005 | K198: 38300.36559 | L198: 966699.6393 | M198: 29000.98918
B199: 14 | C199: 1069433.297 | D199: 39257.87473 | E199: 1030175.423 | F199: 30905.26268 | G199: 5871.999909 | I199: 14 | J199: 995700.6284 | K199: 39257.87473 | L199: 956442.7537 | M199: 28693.28261
B200: 15 | C200: 1055208.685 | D200: 40239.3216 | E200: 1014969.364 | F200: 30449.08092 | G200: 5785.325374 | I200: 15 | J200: 985136.0363 | K200: 40239.3216 | L200: 944896.7147 | M200: 28346.90144
B201: 16 | C201: 1039633.119 | D201: 41245.30464 | E201: 998387.8148 | F201: 29951.63444 | G201: 5690.810544 | I201: 16 | J201: 973243.6162 | K201: 41245.30464 | L201: 931998.3115 | M201: 27959.94935
B202: 17 | C202: 1022648.639 | D202: 42276.43725 | E202: 980372.2014 | F202: 29411.16604 | G202: 5588.121548 | I202: 17 | J202: 959958.2609 | K202: 42276.43725 | L202: 917681.8236 | M202: 27530.45471
B203: 18 | C203: 1004195.246 | D203: 43333.34818 | E203: 960861.8977 | F203: 28825.85693 | G203: 5476.912817 | I203: 18 | J203: 945212.2783 | K203: 43333.34818 | L203: 901878.9301 | M203: 27056.3679
B204: 19 | C204: 984210.8419 | D204: 44416.68189 | E204: 939794.16 | F204: 28193.8248 | G204: 5356.826712 | I204: 19 | J204: 928935.298 | K204: 44416.68189 | L204: 884518.6162 | M204: 26535.55848
B205: 20 | C205: 962631.1581 | D205: 45527.09894 | E205: 917104.0591 | F205: 27513.12177 | G205: 5227.493137 | I205: 20 | J205: 911054.1746 | K205: 45527.09894 | L205: 865527.0757 | M205: 25965.81227
B206: 21 | C206: 939389.6878 | D206: 46665.27641 | E206: 892724.4113 | F206: 26781.73234 | G206: 5088.529145 | I206: 21 | J206: 891492.888 | K206: 46665.27641 | L206: 844827.6116 | M206: 25344.82835
B207: 22 | C207: 914417.6145 | D207: 47831.90832 | E207: 866585.7062 | F207: 25997.57119 | G207: 4939.538525 | I207: 22 | J207: 870172.4399 | K207: 47831.90832 | L207: 822340.5316 | M207: 24670.21595
B208: 23 | C208: 887643.7389 | D208: 49027.70603 | E208: 838616.0329 | F208: 25158.48099 | G208: 4780.111387 | I208: 23 | J208: 847010.7475 | K208: 49027.70603 | L208: 797983.0415 | M208: 23939.49125
B209: 24 | C209: 858994.4025 | D209: 50253.39868 | E209: 808741.0038 | F209: 24262.23011 | G209: 4609.823722 | I209: 24 | J209: 821922.5328 | K209: 50253.39868 | L209: 771669.1341 | M209: 23150.07402
B210: 25 | C210: 828393.4102 | D210: 51509.73364 | E210: 776883.6765 | F210: 23306.5103 | G210: 4428.236956 | I210: 25 | J210: 794819.2081 | K210: 51509.73364 | L210: 743309.4745 | M210: 22299.28423
B211: 26 | C211: 795761.9499 | D211: 52797.47699 | E211: 742964.4729 | F211: 22288.93419 | G211: 4234.897495 | I211: 26 | J211: 765608.7587 | K211: 52797.47699 | L211: 712811.2817 | M211: 21384.33845
B212: 27 | C212: 761018.5096 | D212: 54117.41391 | E212: 706901.0957 | F212: 21207.03287 | G212: 4029.336245 | I212: 27 | J212: 734195.6202 | K212: 54117.41391 | L212: 680078.2063 | M212: 20402.34619
B213: 28 | C213: 724078.7923 | D213: 55470.34926 | E213: 668608.443 | F213: 20058.25329 | G213: 3811.068125 | I213: 28 | J213: 700480.5524 | K213: 55470.34926 | L213: 645010.2032 | M213: 19350.3061
B214: 29 | C214: 684855.6282 | D214: 56857.10799 | E214: 627998.5202 | F214: 18839.95561 | G214: 3579.591565 | I214: 29 | J214: 664360.5093 | K214: 56857.10799 | L214: 607503.4013 | M214: 18225.10204
B215: 30 | C215: 643258.8842 | D215: 58278.53569 | E215: 584980.3486 | F215: 17549.41046 | G215: 3334.387987 | I215: 30 | J215: 625728.5033 | K215: 58278.53569 | L215: 567449.9676 | M215: 17023.49903
B216: 31 | C216: 599195.371 | D216: 59735.49908 | E216: 539459.8719 | F216: 16183.79616 | G216: 3074.92127 | I216: 31 | J216: 584473.4667 | K216: 59735.49908 | L216: 524737.9676 | M216: 15742.13903
B217: 32 | C217: 552568.7468 | D217: 61228.88656 | E217: 491339.8603 | F217: 14740.19581 | G217: 2800.637204 | I217: 32 | J217: 540480.1066 | K217: 61228.88656 | L217: 479251.2201 | M217: 14377.5366
B218: 33 | C218: 503279.4189 | D218: 62759.60872 | E218: 440519.8102 | F218: 13215.5943 | G218: 2510.962918 | I218: 33 | J218: 493628.7567 | K218: 62759.60872 | L218: 430869.1479 | M218: 12926.07444
... 7 more rows

Sheet Obliczenia - ile odkladac
C2: Uwaga! To jest arkusz obliczeniowy. Najlepiej przy nim nie majstrować :) Jeśli chcesz zmienić założenia zrób to w zakładce "Założenia i wyniki"
C4: Obliczenie miesięcznej kwoty oszczędności
C5: Liczba lat do emerytury | D5: ='Zalozenia i wyniki'!D16 -> 35
C6: Stopa zwrotu przed emeryturą | D6: ='Zalozenia i wyniki'!D17 -> 0.04
C7: Stopa zwrotu po podatku Belki | D7: =$D$6*(1-$D$9) -> 0.0324
C8: Obecne oszczędności | D8: ='Zalozenia i wyniki'!D19 -> 0
C9: Stawka podatku Belki | D9: ='Zalozenia i wyniki'!D23 -> 0.19
B12: Bez podatku Belki (PRZED EMERYTURĄ) | E12: 12 | F12: m-cy | G12: Z podatkiem Belki (PRZED EMERYTURĄ) | J12: 12 | K12: m-cy
B13: Na ile lat emerytury ma wystarczyć? | C13: FV | D13: PMT roczne | E13: PMT miesięczne | G13: Na ile lat emerytury ma wystarczyć? | H13: FV | I13: PMT roczne | J13: PMT miesięczne
B14: na 5 lat | C14: ='Zalozenia i wyniki'!C32 -> 142587.0642 | D14: =IF(-PMT($D$6,$D$5,-$D$8,C14)>=0,-PMT($D$6,$D$5,-$D$8,C14),0) -> 1935.950536 | E14: =D14/$E$12 -> 161.3292113 | G14: na 5 lat | H14: ='Zalozenia i wyniki'!C32 -> 142587.0642 | I14: =IF(-PMT($D$7,$D$5,-$D$8,H14)>=0,-PMT($D$7,$D$5,-$D$8,H14,0),0) -> 2250.639864 | J14: =I14/$J$12 -> 187.553322
B15: na 10 lat | C15: ='Zalozenia i wyniki'!C33 -> 285662.0101 | D15: =IF(-PMT($D$6,$D$5,-$D$8,C15)>=0,-PMT($D$6,$D$5,-$D$8,C15),0) -> 3878.5252 | E15: =D15/$E$12 -> 323.2104333 | G15: na 10 lat | H15: ='Zalozenia i wyniki'!C33 -> 285662.0101 | I15: =IF(-PMT($D$7,$D$5,-$D$8,H15)>=0,-PMT($D$7,$D$5,-$D$8,H15,0),0) -> 4508.98061 | J15: =I15/$J$12 -> 375.7483842
B16: na 15 lat | C16: ='Zalozenia i wyniki'!C34 -> 429226.5072 | D16: 5827.746657 | E16: 485.6455548 | G16: na 15 lat | H16: ='Zalozenia i wyniki'!C34 -> 429226.5072 | I16: 6775.048588 | J16: 564.5873823
B17: na 20 lat | C17: ='Zalozenia i wyniki'!C35 -> 573282.2305 | D17: 7783.637651 | E17: 648.6364709 | G17: na 20 lat | H17: ='Zalozenia i wyniki'!C35 -> 573282.2305 | I17: 9048.870237 | J17: 754.0725197
B18: na 25 lat | C18: ='Zalozenia i wyniki'!C36 -> 717830.8607 | D18: 9746.221002 | E18: 812.1850835 | G18: na 25 lat | H18: ='Zalozenia i wyniki'!C36 -> 717830.8607 | I18: 11330.47209 | J18: 944.2060073
B19: na 30 lat | C19: ='Zalozenia i wyniki'!C37 -> 862874.0845 | D19: 11715.51961 | E19: 976.2933007 | G19: na 30 lat | H19: ='Zalozenia i wyniki'!C37 -> 862874.0845 | I19: 13619.88076 | J19: 1134.990063
B20: na 35 lat | C20: ='Zalozenia i wyniki'!C38 -> 1008413.594 | D20: 13691.55645 | E20: 1140.963037 | G20: na 35 lat | H20: ='Zalozenia i wyniki'!C38 -> 1008413.594 | I20: 15917.12297 | J20: 1326.426914
B21: na 40 lat | C21: ='Zalozenia i wyniki'!C39 -> 1154451.088 | D21: 15674.35458 | E21: 1306.196215 | G21: na 40 lat | H21: ='Zalozenia i wyniki'!C39 -> 1154451.088 | I21: 18222.22552 | J21: 1518.518793

Sheet Techniczne
D1: Uwaga! To jest arkusz obliczeniowy. Najlepiej przy nim nie majstrować :) Jeśli chcesz zmienić założenia zrób to w zakładce "Założenia i wyniki"
B3: Lista rozwijalna podatku Belki:
B4: TAK
B5: NIE
